bitfinex-derivatives/quotes_SOLF0:USTF0_20250914
["timestamp","ask_amount","ask_price","bid_price","bid_amount"]
[1757882525022,1.10195455,242.0,241.91,6.77]
[1757882525223,2.8950736,241.99,241.91,6.77]
[1757882525424,1.10195455,242.0,241.91,6.77]
[1757882525625,2.89503309,241.99,241.91,6.77]
[1757882525825,1.10195455,242.0,241.91,6.77]
[1757882526022,2.89501711,241.99,241.91,6.77]
[1757882526223,1.10195455,242.0,241.91,6.77]
[1757882526728,1.10195455,242.03,241.91,6.77]
[1757882526928,2.89507928,242.02,241.91,6.77]
[1757882527130,2.89507928,242.01,241.91,6.77]
[1757882527324,1.10195455,242.03,241.91,6.77]
[1757882527526,2.89474368,242.02,241.93,1.10195455]
[1757882527725,1.10195455,242.05,241.94,6.92]
[1757882527926,2.89420509,242.04,241.94,6.92]
[1757882528128,2.89420509,242.03,241.94,6.92]
[1757882528328,1.10195455,242.05,241.94,6.92]
[1757882528630,2.89288975,242.04,241.94,6.92]
[1757882528823,2.89288975,242.03,241.94,6.92]
[1757882529025,1.10195455,242.05,241.94,6.92]
[1757882529222,2.89265938,242.04,241.94,6.92]
[1757882529428,1.10195455,242.05,241.94,6.92]
[1757882529630,2.89193461,242.04,241.94,6.92]
[1757882529930,1.10195455,242.05,241.94,6.92]
[1757882530128,2.89097083,242.04,241.94,6.92]
[1757882530329,1.10195455,242.05,241.94,6.92]
[1757882530529,2.89004533,242.04,241.94,6.92]
[1757882530730,2.92,242.07,241.94,6.92]
[1757882530932,1.10195455,242.05,241.94,6.92]
[1757882531127,2.89004533,242.04,241.94,6.92]
[1757882531332,1.10195455,242.05,241.94,6.92]
[1757882531637,2.88896407,242.04,241.94,6.92]
[1757882531835,1.10195455,242.05,241.94,6.92]
[1757882532030,2.88893198,242.04,241.94,6.92]
[1757882532337,1.10195455,242.05,241.94,6.92]
[1757882532535,2.88871095,242.04,241.94,6.92]
[1757882533336,1.10195455,242.05,241.94,6.92]
[1757882533832,2.92,242.11,241.94,6.92]
[1757882534136,1.10195455,242.06,241.94,6.92]
[1757882535038,3.98935011,242.06,241.94,6.92]
[1757882535236,1.10195455,242.06,241.94,6.92]
[1757882535634,3.98808065,242.06,241.94,6.92]
[1757882535937,1.10195455,242.06,241.94,6.92]
[1757882536336,3.98807976,242.06,241.94,6.92]
[1757882536536,1.10195455,242.06,241.94,6.92]
[1757882537038,1.10195455,242.06,241.95,6.56]
[1757882539442,1.10195455,242.06,241.97,6.56]
[1757882539939,2.92,242.08,241.97,6.56]
[1757882540141,1.10195455,242.1,241.97,6.56]
[1757882541836,2.92,242.09,241.97,6.56]
[1757882542044,1.10195455,242.08,241.98,6.56]
[1757882542744,2.92,242.09,241.98,6.56]
[1757882542944,1.10195455,242.08,241.98,6.56]
[1757882543144,1.10195455,242.11,241.98,7.66195455]
[1757882543645,12.0,242.17,241.97,83.82]
[1757882543646,1.10195455,242.14,242.02,6.56]
[1757882543845,2.88259674,242.16,242.02,6.56]
[1757882545344,2.92,242.17,242.04,6.56]
[1757882548647,1.71905346,242.22,242.04,48.32]
[1757882548849,1.71905346,242.18,242.04,41.76]
[1757882549049,2.92,242.17,242.05,6.56]
[1757882549650,1.71905346,242.18,242.05,6.56]
[1757882550549,2.92,242.13,242.05,6.56]
[1757882550949,1.71905346,242.14,242.05,6.56]
[1757882552553,2.92,242.17,242.05,6.56]
[1757882552751,1.71905346,242.18,242.05,6.56]
[1757882552952,2.92,242.17,242.05,6.56]
[1757882553552,1.71905346,242.18,242.05,6.56]
[1757882553755,4.63905346,242.17,242.05,6.56]
[1757882556453,2.92,242.21,242.05,6.56]
[1757882556655,2.92,242.21,242.08,6.56]
[1757882559371,2.92,242.21,242.12,6.56]
[1757882560868,1.71905346,242.28,242.12,6.56]
[1757882561061,2.92,242.27,242.12,6.56]
[1757882562973,2.92,242.27,242.16,6.64]
[1757882567872,2.92,242.27,242.17,6.64]
[1757882570070,2.9,242.28,242.17,6.64]
[1757882570277,1.71905346,242.29,242.17,6.64]
[1757882570675,2.9,242.28,242.17,6.64]
[1757882570972,1.71905346,242.29,242.17,6.64]
[1757882571179,2.9,242.28,242.17,6.64]
[1757882572381,1.71905346,242.29,242.17,6.64]
[1757882572382,2.9,242.27,242.17,6.64]
[1757882581784,2.91,242.29,242.17,6.64]
[1757882582081,1.71905346,242.3,241.95,286.74099664]
[1757882582082,2.91,242.17,242.04,6.59]
[1757882582380,2.91,242.23,242.08,6.59]
[1757882582579,2.86520553,242.22,242.08,6.59]
[1757882582780,2.91,242.21,242.08,6.59]
[1757882583174,2.91,242.23,242.08,6.59]
[1757882583378,2.86616822,242.22,242.08,6.59]
[1757882583579,1.71905346,242.2,242.08,6.59]
[1757882583783,2.91,242.19,242.08,6.59]
[1757882585987,2.86902187,242.18,242.08,6.59]
[1757882587386,2.91,242.17,242.08,6.59]
[1757882590985,1.71905346,242.2,242.08,6.59]
[1757882591182,2.87243723,242.19,242.08,6.59]
[1757882591382,2.92,242.17,242.08,6.59]
[1757882591584,2.87243723,242.16,242.08,6.59]
[1757882592087,2.92,242.17,242.08,6.59]
[1757882598489,2.87800752,242.16,242.08,6.59]
[1757882599301,2.92,242.15,242.08,6.59]
[1757882606298,16.02017569,242.19,242.1,6.79]
[1757882606500,2.87949568,242.18,242.1,6.79]
[1757882608604,1.10017569,242.13,242.02,6.79]
[1757882608797,1.10017569,242.1,242.02,6.79]
[1757882608998,2.92,242.09,242.02,6.79]
[1757882612000,2.92,242.06,241.98,6.79]
[1757882616106,1.10017569,242.04,241.98,6.79]
[1757882617411,1.10017569,242.05,241.98,6.79]
[1757882619106,1.10017569,242.05,241.95,1.10017569]
[1757882619107,2.92,242.04,241.94,6.79]
[1757882619411,2.92,242.01,241.94,6.79]
[1757882620408,1.10017569,242.06,241.94,6.79]
[1757882620710,3.97562712,242.06,241.94,6.79]
[1757882623715,2.87545143,242.06,241.94,6.79]
[1757882623917,3.97562712,242.06,241.94,6.79]
[1757882626123,3.97562712,242.06,241.94,7.89017569]
[1757882627819,2.87545143,242.06,241.94,7.89017569]
[1757882628121,3.97562712,242.06,241.94,7.89017569]
[1757882631223,1.10017569,242.03,241.94,6.79]
[1757882632920,12.0,242.08,241.98,6.68]
[1757882633128,13.10017569,242.08,241.98,6.68]
[1757882636433,2.8800074,242.07,241.98,6.68]
[1757882636834,13.10017569,242.08,241.98,6.68]
[1757882637429,1.10017569,242.06,241.98,6.68]
[1757882638931,1.10017569,242.03,241.98,6.68]
[1757882639236,2.91,242.02,241.98,6.68]
[1757882639733,1.10017569,242.03,241.94,7.09]
[1757882642441,2.91,242.02,241.94,7.09]
[1757882644840,1.10017569,241.97,241.94,7.09]
[1757882645042,4.01017569,241.97,241.94,7.09]
[1757882645243,1.10017569,241.97,241.86,7.09]
[1757882645440,1.10017569,241.94,241.86,7.09]
[1757882647441,1.10017569,241.91,241.85,7.09]
[1757882660152,1.10017569,241.88,241.85,7.09]
[1757882661250,1.10017569,241.88,241.81,19.28391463]
[1757882661251,4.02017569,241.88,241.81,19.28391463]
[1757882661450,4.02017569,241.88,241.81,6.72]
[1757882667856,2.92,241.88,241.81,6.72]
[1757882673154,2.92,241.93,241.81,6.72]
[1757882675462,12.0,242.02,241.86,1.72280457]
[1757882675661,5.79581215,242.01,241.87,6.72]
[1757882675866,2.87581215,242.0,241.87,6.72]
[1757882676662,2.92,242.01,241.91,6.72]
[1757882676855,12.0,242.07,241.91,6.72]
[1757882676856,2.92,242.06,241.91,6.72]
[1757882677063,2.87637629,242.05,241.91,6.72]
[1757882677662,2.92,242.06,241.91,6.72]
[1757882677961,12.0,242.07,241.91,6.72]
[1757882678161,2.87677946,242.06,241.94,1.72280457]
[1757882678367,2.87677946,242.06,241.95,6.72]
[1757882678572,2.92,242.1,241.95,6.72]
[1757882678769,2.87735513,242.09,241.95,6.72]
[1757882679165,2.87735513,242.09,241.98,1.72280457]
[1757882679362,2.87735513,242.09,241.85,6.96519978]
[1757882679363,38.86280457,242.14,241.99,6.72]
[1757882679577,1.72280457,242.1,241.89,6.72]
[1757882679766,38.86280457,242.14,241.89,6.72]
[1757882679767,2.92,242.04,241.89,6.72]
[1757882680571,2.87704528,242.03,241.89,6.72]
[1757882680765,1.72280457,242.01,241.89,6.72]
[1757882680968,2.92,242.0,241.89,6.72]
[1757882682470,1.72280457,242.09,241.89,6.72]
[1757882682779,2.92,242.07,241.89,6.72]
[1757882683073,2.92,242.07,241.93,6.94]
[1757882683678,2.87815545,242.06,241.93,6.94]
[1757882684277,2.92,242.07,241.93,6.94]
[1757882696992,2.92,242.07,241.94,6.83]
[1757882697195,1.72280457,242.09,241.94,6.83]
[1757882697196,1.72280457,242.09,241.95,6.83]
[1757882698695,14.93,242.11,241.95,6.83]
[1757882701401,2.93,242.09,241.95,6.83]
[1757882702296,2.93,242.15,241.97,6.83]
[1757882702598,12.0,242.19,241.97,6.83]
[1757882702599,1.72280457,242.17,241.97,6.83]
[1757882702796,2.93,242.16,241.98,6.38]
[1757882702993,1.72280457,242.13,241.99,18.91]
[1757882703192,2.93,242.12,242.0,6.83]
[1757882705001,2.93,242.08,242.0,6.83]
[1757882708008,2.93,242.04,241.89,6.83]
[1757882708202,27.32,242.12,241.89,6.83]
[1757882708203,4.65280457,242.01,241.89,6.83]
[1757882711312,2.93,242.0,241.89,6.83]
[1757882711513,2.93,241.96,241.89,6.83]
[1757882712208,1.72280457,242.01,241.89,6.83]
[1757882712411,2.93,242.0,241.89,6.83]
[1757882714115,1.72280457,242.01,241.89,6.83]
[1757882714410,1.72280457,242.01,241.84,277.74]
[1757882714411,2.93,241.96,241.84,277.74]
[1757882714711,2.93,241.92,241.85,6.48]
[1757882715714,1.72280457,242.04,241.85,6.48]
[1757882715715,2.93,241.97,241.85,6.48]
[1757882715912,2.93,241.97,241.88,1.72280457]
[1757882716112,2.93,241.97,241.89,6.48]
[1757882719016,2.93,242.05,241.89,6.48]
[1757882719215,20.34280457,242.06,241.89,6.48]
[1757882719216,2.93,242.03,241.89,6.48]
[1757882719417,2.88444203,242.02,241.89,6.48]
[1757882720219,2.88444203,242.02,241.79,12.33123646]
[1757882720220,2.93,241.97,241.84,6.48]
[1757882720415,2.88444203,241.96,241.84,6.48]
[1757882720616,2.93,241.94,241.84,6.48]
[1757882721112,2.93,242.02,241.87,1.72280457]
[1757882721317,2.93,242.02,241.88,6.48]
[1757882721318,2.88555846,242.01,241.88,6.48]
[1757882721516,2.93,241.99,241.88,6.48]
[1757882722614,2.93,242.05,241.91,1.72280457]
[1757882722817,2.8866704,242.04,241.92,6.48]
[1757882723018,2.8866704,242.03,241.92,6.48]
[1757882723314,2.93,242.05,241.92,6.48]
[1757882723519,2.88694618,242.04,241.92,6.48]
[1757882724322,2.93,242.1,241.96,6.48]
[1757882724523,2.88725184,242.09,241.96,6.48]
[1757882724722,2.88725184,242.08,241.96,6.48]
[1757882724925,2.93,242.06,241.96,6.48]
[1757882725123,2.88725184,242.05,241.96,6.48]
[1757882730428,2.93,242.06,241.96,6.48]
[1757882731829,2.88572462,242.05,241.96,6.48]
[1757882732230,1.10097531,242.07,241.96,6.48]
[1757882732231,2.93,242.04,241.96,6.48]
[1757882732632,1.10097531,242.03,241.96,6.48]
[1757882736339,2.93,242.04,241.96,6.48]
[1757882736532,1.10097531,242.03,241.96,6.48]
[1757882736928,1.10097531,241.97,241.86,6.79]
[1757882738938,1.10097531,241.97,241.89,6.79]
[1757882739139,2.93,241.96,241.89,6.79]
[1757882749350,4.03097531,241.98,241.87,1.10097531]
[1757882749542,2.93,241.96,241.85,1.10097531]
[1757882749848,2.93,241.94,241.85,1.10097531]
[1757882752546,2.93,241.92,241.85,1.10097531]
[1757882755153,2.94,241.94,241.84,6.47]
[1757882755347,2.88355955,241.93,241.84,6.47]
[1757882755547,1.10097531,241.95,241.84,6.47]
[1757882755754,2.88295046,241.94,241.84,6.47]
[1757882755954,14.88295046,241.93,241.83,1.10097531]
[1757882756154,3.98392577,241.92,241.8,110.62097531]
[1757882756454,2.94,241.88,241.8,110.62097531]
[1757882758152,2.94,241.88,241.8,6.96]
[1757882758746,2.94,241.88,241.79,1.10097531]
[1757882758945,1.10097531,241.95,241.82,1.10097531]
[1757882759157,36.31832608,241.94,241.85,1.10097531]
[1757882759350,2.87832608,241.93,241.85,1.10097531]
[1757882760258,2.94,241.92,241.85,1.10097531]
[1757882760557,2.87832608,241.91,241.85,1.10097531]
[1757882763252,2.94,241.92,241.85,1.10097531]
[1757882763462,2.94,241.92,241.86,6.96]
[1757882766661,2.94,241.92,241.86,8.06097531]
[1757882770267,14.94,241.96,241.86,8.06097531]
[1757882770468,14.94,241.96,241.76,29.39551199]
[1757882770469,12.0,241.96,241.94,6.96]
[1757882770767,2.94,242.03,241.95,1.10097531]
[1757882770967,2.87780387,242.02,241.95,1.10097531]
[1757882771966,2.93,242.01,241.95,1.10097531]
[1757882772267,2.93,241.99,241.95,1.10097531]
[1757882772467,2.87780387,241.98,241.95,1.10097531]
[1757882772868,5.80780387,241.98,241.95,1.10097531]
[1757882773064,2.93,241.98,241.95,1.10097531]
[1757882776463,13.10097531,242.04,241.95,1.10097531]
[1757882776667,14.87999882,242.03,241.94,6.96]
[1757882776970,2.93,241.97,241.78,7.66]
[1757882777170,2.93,241.95,241.87,1.10097531]
[1757882777367,2.87999882,241.94,241.87,1.10097531]
[1757882778168,2.93,241.93,241.85,6.79]
[1757882778570,2.88040335,241.92,241.85,6.79]
[1757882781575,2.93,241.91,241.83,1.10097531]
[1757882781774,2.93,241.91,241.81,6.79]
[1757882781775,2.88187029,241.9,241.81,6.79]
[1757882781978,2.88187029,241.9,241.82,1.10097531]
[1757882782675,2.93,241.89,241.81,6.79]
[1757882782974,4.03097531,241.84,241.77,6.79]
[1757882783173,4.03097531,241.84,241.73,6.79]
[1757882783375,1.10097531,241.84,241.73,6.79]
[1757882783579,28.5,241.86,241.73,6.79]
[1757882783580,2.93,241.8,241.73,6.79]
[1757882783775,2.93,241.8,241.6,6.96519978]
[1757882783978,1.10097531,241.78,241.69,7.89097531]
[1757882784179,2.93,241.77,241.69,7.89097531]
[1757882784678,2.93,241.77,241.69,6.79]
[1757882784878,14.0,241.83,241.66,1.10097531]
[1757882784879,2.93,241.74,241.66,1.10097531]
[1757882785176,2.93,241.74,241.64,6.79]
[1757882785477,1.10097531,241.72,241.64,6.79]
[1757882786081,25.61,241.79,241.66,6.79]
[1757882786275,3.97582902,241.78,241.69,6.79]
[1757882786878,3.97582902,241.78,241.68,1.10097531]
[1757882786879,32.0,241.8,241.72,6.79]
[1757882787076,2.87299122,241.79,241.72,6.79]
[1757882787376,1.10097531,241.81,241.72,6.79]
[1757882787571,2.87200383,241.82,241.75,6.79]
[1757882789081,1.10097531,241.81,241.75,6.79]
[1757882789771,2.87200383,241.82,241.75,6.79]
[1757882791880,105.35200383,241.82,241.75,6.79]
[1757882792080,102.48,241.82,241.75,6.79]
[1757882792482,105.41,241.83,241.75,6.79]
[1757882792682,2.86369895,241.82,241.75,6.79]
[1757882793987,114.48,241.84,241.75,6.79]
[1757882794188,2.86312506,241.83,241.75,6.79]
[1757882800492,35.38,241.84,241.75,6.79]
[1757882801995,12.0,241.84,241.75,6.79]
[1757882803493,14.94,241.84,241.75,6.79]
[1757882806392,2.94,241.84,241.75,6.79]
[1757882806593,1.72394345,241.89,241.75,6.79]
[1757882806998,4.58578086,241.89,241.75,6.79]
[1757882808695,1.72394345,241.8,241.6,19.60102073]
[1757882808999,1.72394345,241.76,241.62,6.79]
[1757882821500,1.72394345,241.76,241.63,6.99]
[1757882823411,4.66394345,241.76,241.63,6.99]
[1757882825210,2.87265925,241.75,241.63,6.99]
[1757882825609,4.66394345,241.76,241.63,6.99]
[1757882826212,2.87335252,241.75,241.63,6.99]
[1757882827215,2.87335252,241.74,241.63,6.99]
[1757882827413,4.66394345,241.76,241.63,6.99]
[1757882827613,2.8747058,241.75,241.63,6.99]
[1757882827915,2.8747058,241.74,241.63,6.99]
[1757882828114,4.66394345,241.76,241.63,6.99]
[1757882828314,2.87474959,241.75,241.63,6.99]
[1757882828613,2.87474959,241.74,241.63,6.99]
[1757882828914,4.66394345,241.76,241.63,6.99]
[1757882829113,2.87533608,241.75,241.63,6.99]
[1757882829312,2.87533608,241.74,241.63,6.99]
[1757882829615,4.66394345,241.76,241.63,6.99]
[1757882829913,2.94,241.76,241.63,6.99]
[1757882830113,1.72394345,241.76,241.63,6.99]
[1757882830317,2.8756407,241.75,241.63,6.99]
[1757882830510,2.94,241.73,241.63,6.99]
[1757882831013,2.94,241.66,241.57,6.99]
[1757882839114,2.95,241.66,241.57,6.99]
[1757882842628,1.72394345,241.67,241.57,6.99]
[1757882845629,2.95,241.66,241.57,6.99]
[1757882846325,2.95,241.62,241.49,0.71946908]
[1757882846520,2.95,241.62,241.52,6.7]
[1757882848130,1.72394345,241.63,241.52,6.7]
[1757882849430,2.95,241.62,241.52,6.7]
[1757882849933,1.10547537,241.58,241.52,6.7]
[1757882851532,12.0,241.67,241.52,6.7]
[1757882851728,1.10547537,241.61,241.52,6.7]
[1757882852029,1.10547537,241.64,241.52,6.7]
[1757882854631,2.95,241.63,241.52,6.7]
[1757882857634,1.10547537,241.64,241.52,6.7]
[1757882857838,1.10547537,241.67,241.55,6.7]
[1757882859329,1.10547537,241.64,241.55,6.7]
[1757882862240,2.95,241.66,241.55,6.7]
[1757882873242,2.8757974,241.65,241.55,6.7]
[1757882875246,2.8757974,241.64,241.55,6.7]
[1757882875446,2.95,241.66,241.55,6.7]
[1757882875646,2.87883321,241.65,241.55,6.7]
[1757882875841,2.87883321,241.64,241.55,6.7]
[1757882876042,2.95,241.66,241.55,6.7]
[1757882876249,2.8783141,241.65,241.55,6.7]
[1757882876445,2.8783141,241.64,241.55,6.7]
[1757882876647,2.95,241.66,241.55,6.7]
[1757882876847,2.87857209,241.65,241.55,6.7]
[1757882877050,2.87857209,241.64,241.55,6.7]
[1757882877348,2.87857209,241.63,241.55,6.7]
[1757882877544,2.95,241.66,241.55,6.7]
[1757882877740,2.87945548,241.65,241.55,6.7]
[1757882877940,2.87945548,241.64,241.55,6.7]
[1757882878141,2.95,241.66,241.57,1.10547537]
[1757882878344,2.88020152,241.65,241.58,7.02]
[1757882878645,2.94,241.7,241.58,7.02]
[1757882878846,2.88040979,241.69,241.58,7.02]
[1757882879041,2.88040979,241.68,241.61,7.02]
[1757882879246,2.88040979,241.67,241.61,7.02]
[1757882879442,2.94,241.7,241.61,7.02]
[1757882879650,2.86741561,241.69,241.61,7.02]
[1757882879854,2.94,241.7,241.61,7.02]
[1757882879855,2.86741561,241.68,241.61,7.02]
[1757882880054,2.94,241.7,241.61,7.02]
[1757882880251,2.86775227,241.69,241.61,7.02]
[1757882880549,2.86775227,241.68,241.61,7.02]
[1757882880745,2.94,241.7,241.61,7.02]
[1757882881050,2.8676685,241.69,241.61,7.02]
[1757882881252,2.8676685,241.68,241.61,7.02]
[1757882881551,2.94,241.7,241.61,7.02]
[1757882881752,2.86609135,241.69,241.61,7.02]
[1757882881952,2.86609135,241.68,241.61,7.02]
[1757882882153,2.94,241.7,241.61,7.02]
[1757882882346,2.87052935,241.69,241.61,7.02]
[1757882882544,2.87052935,241.68,241.61,7.02]
[1757882882744,2.94,241.7,241.61,7.02]
[1757882882955,2.87031175,241.69,241.61,7.02]
[1757882883154,2.87031175,241.68,241.61,7.02]
[1757882883456,2.94,241.7,241.61,7.02]
[1757882883655,2.87005726,241.69,241.61,7.02]
[1757882883855,2.87005726,241.68,241.61,7.02]
[1757882884053,2.94,241.7,241.61,7.02]
[1757882884253,2.87046236,241.69,241.61,7.02]
[1757882884560,2.87046236,241.68,241.61,7.02]
[1757882884754,2.94,241.7,241.61,7.02]
[1757882884956,2.87017382,241.69,241.61,7.02]
[1757882885155,2.87017382,241.68,241.61,7.02]
[1757882885357,2.94,241.7,241.61,7.02]
[1757882885657,2.87009125,241.69,241.61,7.02]
[1757882885957,2.87009125,241.68,241.61,7.02]
[1757882886159,2.94,241.7,241.61,7.02]
[1757882886458,2.87006783,241.69,241.61,7.02]
[1757882886756,2.87006783,241.68,241.61,7.02]
[1757882886955,2.94,241.7,241.61,7.02]
[1757882887156,2.86979258,241.69,241.61,7.02]
[1757882887351,2.94,241.7,241.61,7.02]
[1757882887553,2.86945871,241.69,241.61,7.02]
[1757882887753,2.94,241.7,241.61,7.02]
[1757882888058,2.86946088,241.69,241.61,7.02]
[1757882888258,2.94,241.7,241.61,7.02]
[1757882888556,2.86915841,241.69,241.61,7.02]
[1757882896364,2.94,241.7,241.61,7.02]
[1757882896571,2.86726968,241.69,241.61,7.02]
[1757882897966,2.86726968,241.68,241.53,6.79]
[1757882898172,4.05547537,241.62,241.53,6.79]
[1757882903077,2.95,241.62,241.53,6.79]
[1757882903776,2.95,241.71,241.53,6.79]
[1757882903977,12.0,241.74,241.5,37.84]
[1757882903978,4.05547537,241.69,241.56,6.79]
[1757882904167,2.8694971,241.68,241.56,6.79]
[1757882904371,2.8694971,241.67,241.56,6.79]
[1757882904571,2.8694971,241.66,241.56,3.7239]
[1757882904875,4.05547537,241.69,241.57,6.79]
[1757882905079,2.86534434,241.68,241.57,6.79]
[1757882905475,2.86534434,241.68,241.59,6.79]
[1757882906881,4.05547537,241.69,241.59,6.79]
[1757882907175,2.95,241.69,241.59,6.79]
[1757882912983,1.72539121,241.71,241.59,6.79]
[1757882913183,2.95,241.69,241.59,6.79]
[1757882913382,2.95,241.67,241.59,6.79]
[1757882914482,2.89220736,241.66,241.59,6.79]
[1757882914677,5.84220736,241.65,241.59,6.79]
[1757882914877,2.95,241.65,241.59,6.79]
[1757882916487,2.95,241.63,241.51,6.79]
[1757882916882,2.89211841,241.62,241.51,6.79]
[1757882917187,2.95,241.63,241.51,6.79]
[1757882917680,1.72539121,241.67,241.51,6.79]
[1757882917882,1.72539121,241.63,241.51,6.79]
[1757882918082,2.95,241.61,241.51,6.79]
[1757882918281,2.95,241.59,241.51,6.79]
[1757882920384,5.83939488,241.58,241.51,6.79]
[1757882920590,2.95,241.58,241.51,6.79]
[1757882943903,12.0,241.65,241.51,6.79]
[1757882944104,5.82510443,241.64,241.51,6.79]
[1757882944309,2.95,241.64,241.51,6.79]
[1757882945208,2.95,241.68,241.53,7.06]
[1757882945398,2.87597095,241.67,241.53,7.06]
[1757882947308,2.95,241.68,241.53,7.06]
[1757882948109,2.87591113,241.67,241.53,7.06]
[1757882954410,2.87591113,241.66,241.53,7.06]
[1757882954714,2.87591113,241.65,241.53,7.06]
[1757882954915,2.95,241.68,241.53,7.06]
[1757882955116,2.8814795,241.67,241.53,7.06]
[1757882955615,16.59096864,241.74,241.57,6.82]
[1757882955616,2.95,241.72,241.57,6.82]
[1757882955914,2.88276674,241.71,241.57,6.82]
[1757882956214,5.83276674,241.7,241.57,6.82]
[1757882956408,2.88276674,241.69,241.57,6.82]
[1757882957405,2.88276674,241.69,241.57,8.54539121]
[1757882957609,2.88276674,241.69,241.58,6.82]
[1757882958217,2.95,241.7,241.58,6.82]
[1757882958412,2.87871941,241.69,241.58,6.82]
[1757882958618,2.95,241.7,241.58,6.82]
[1757882968929,1.72539121,241.82,241.61,6.82]
[1757882969123,5.82538016,241.81,241.63,6.82]
[1757882969323,2.87538016,241.8,241.63,6.82]
[1757882969729,2.87538016,241.8,241.64,1.72539121]
[1757882970030,2.87538016,241.8,241.65,6.82]
[1757882971730,1.10338376,241.79,241.67,1.10338376]
[1757882971926,4.05338376,241.79,241.68,6.82]
[1757882973233,1.10338376,241.79,241.68,6.82]
[1757882973435,4.05338376,241.79,241.68,6.82]
[1757882974831,1.10338376,241.76,241.68,6.82]
[1757882975026,2.95,241.75,241.68,6.82]
[1757882976839,2.95,241.72,241.62,6.82]
[1757882977040,1.10338376,241.7,241.62,6.82]
[1757882977241,1.10338376,241.69,241.62,6.82]
[1757882989646,4.05338376,241.7,241.62,6.82]
[1757882997245,2.95,241.7,241.62,6.82]
[1757882997848,1.10338376,241.71,241.62,6.82]
[1757882998049,2.84262795,241.76,241.64,6.97]
[1757882998352,2.84262795,241.76,241.69,6.97]
[1757882998647,4.04338376,241.81,241.69,6.97]
[1757883000350,2.94,241.81,241.69,6.97]
[1757883001953,12.0,241.86,241.64,6.97]
[1757883001954,2.94,241.76,241.64,6.97]
[1757883002151,2.94,241.76,241.63,4.63419586]
[1757883002152,2.94,241.76,241.66,6.97]
[1757883004956,2.94,241.74,241.66,6.97]
[1757883005149,2.94,241.71,241.62,8.07338376]
[1757883005552,2.94,241.77,241.66,6.97]
[1757883007046,2.94,241.77,241.68,1.10338376]
[1757883007253,2.94,241.81,241.72,6.97]
[1757883008053,2.94,241.81,241.74,1.10338376]
[1757883010161,2.94,241.81,241.72,6.97]
[1757883010360,2.94,241.81,241.76,1.10338376]
[1757883010660,12.0,241.82,241.76,1.10338376]
[1757883011456,2.94,241.81,241.76,1.10338376]
[1757883011753,4.46338376,241.81,241.7,1.10338376]
[1757883011959,1.10338376,241.78,241.68,6.49]
[1757883012260,2.94,241.77,241.68,6.49]
[1757883013262,1.10338376,241.78,241.68,6.49]
[1757883013464,1.10338376,241.75,241.68,6.49]
[1757883013656,1.10338376,241.75,241.64,1.10338376]
[1757883013657,2.94,241.74,241.64,7.59338376]
[1757883015064,2.94,241.74,241.64,6.49]